bitfinex/quotes_SOLUSD_20240624
["timestamp","ask_amount","ask_price","bid_price","bid_amount"]
[1719251482011,6.2546,127.47,127.33,7.8531]
[1719251482206,6.2546,127.47,127.3,359.1]
[1719251482207,8.0157,127.46,127.3,7.8553]
[1719251482510,6.2546,127.47,127.34,7.8529]
[1719251482686,0.17,127.46,127.34,23.44]
[1719251482880,6.2546,127.47,127.34,31.2928]
[1719251483205,6.2546,127.47,127.34,7.8523]
[1719251483417,0.34,127.46,127.31,23.6646]
[1719251483590,15.7004,127.44,127.29,7.8556]
[1719251483899,2.25452709,127.43,127.28,43.4766]
[1719251484102,2.25452709,127.43,127.3,19.6373]
[1719251484482,7.8487,127.41,127.27,35.3434]
[1719251484681,7.8487,127.41,127.27,15.7004]
[1719251484682,7.8516,127.37,127.27,15.7004]
[1719251484901,7.0047,127.4,127.21,27.5125]
[1719251484902,16.5589,127.35,127.21,27.5125]
[1719251485103,16.5589,127.35,127.18,131.11]
[1719251485304,0.34,127.34,127.23,19.6491]
[1719251485495,0.34,127.34,127.22,7.8598]
[1719251485694,16.5589,127.35,127.26,7.8573]
[1719251485895,16.5589,127.35,127.25,27.5045]
[1719251486117,16.5589,127.35,127.25,19.646]
[1719251486287,16.5589,127.35,127.22,31.11]
[1719251486288,16.5589,127.35,127.22,50.7605]
[1719251486484,16.5589,127.35,127.25,7.8585]
[1719251486683,16.5589,127.35,127.24,19.647]
[1719251486684,0.17,127.34,127.24,19.647]
[1719251486906,0.34,127.34,127.2,16.5589]
[1719251487206,6.4717,127.33,127.18,80.85714665]
[1719251487418,6.4717,127.33,127.19,20.0]
[1719251487419,0.34,127.32,127.19,20.0]
[1719251487583,0.34,127.32,127.19,7.8617]
[1719251487782,0.34,127.32,127.2,7.8616]
[1719251488007,0.34,127.32,127.18,41.21184665]
[1719251488204,0.34,127.32,127.18,25.32564665]
[1719251488414,0.34,127.32,127.15,3.26932404]
[1719251488588,7.8553,127.31,127.15,11.13352404]
[1719251488789,0.34,127.3,127.17,19.6587]
[1719251489001,0.17,127.3,127.17,19.6587]
[1719251489205,0.17,127.3,127.15,9.08336044]
[1719251489413,0.17,127.3,127.17,7.863]
[1719251489612,0.17,127.3,127.15,32.52336044]
[1719251489794,0.17,127.3,127.15,9.08336044]
[1719251489996,54.85602669,127.33,127.15,9.08336044]
[1719251490299,6.4717,127.33,127.23,19.6487]
[1719251490497,6.4717,127.33,127.22,7.8601]
[1719251490703,6.4717,127.33,127.23,0.17]
[1719251490908,6.4717,127.33,127.23,20.17]
[1719251491103,6.4717,127.33,127.23,19.8183]
[1719251491339,6.4717,127.33,127.25,19.6455]
[1719251491496,6.4717,127.33,127.28,7.8565]
[1719251491701,6.4717,127.33,127.27,27.4998]
[1719251491926,6.4717,127.33,127.28,0.34]
[1719251492217,6.4717,127.33,127.24,39.6469]
[1719251492397,6.4717,127.33,127.25,0.34]
[1719251492589,2.08611057,127.32,127.24,20.0]
[1719251492794,2.08611057,127.32,127.2,101.5255]
[1719251492795,2.08611057,127.32,127.23,19.9881]
[1719251493027,2.08611057,127.32,127.24,20.0]
[1719251493223,2.08611057,127.32,127.26,7.8576]
[1719251493432,2.08611057,127.32,127.27,20.0]
[1719251493932,6.6562,127.38,127.27,20.0]
[1719251494096,2.08131212,127.37,127.25,20.0]
[1719251494303,2.08131212,127.37,127.26,0.34]
[1719251494606,2.08131212,127.37,127.27,19.6424]
[1719251494812,2.08131212,127.37,127.29,19.6395]
[1719251495012,2.08131212,127.37,127.3,43.61]
[1719251495217,2.08131212,127.37,127.35,27.4819]
[1719251495433,2.08131212,127.37,127.36,0.17]
[1719251495799,2.08131212,127.37,127.36,20.34]
[1719251496098,6.3162,127.43,127.37,19.6269]
[1719251496320,6.3162,127.43,127.39,7.8497]
[1719251496527,6.3162,127.43,127.4,20.0]
[1719251496819,6.3162,127.43,127.38,20.34]
[1719251497201,6.3162,127.43,127.38,0.34]
[1719251497405,15.51,127.46,127.4,7.8488]
[1719251497614,2.08131212,127.45,127.38,19.9655]
[1719251497818,2.08131212,127.45,127.39,20.0]
[1719251497998,2.08131212,127.45,127.38,0.17]
[1719251498196,2.08131212,127.45,127.38,8.1904]
[1719251498416,2.08131212,127.45,127.38,0.34]
[1719251498605,2.08131212,127.45,127.38,0.17]
[1719251498809,2.08131212,127.45,127.39,7.8498]
[1719251499024,2.08131212,127.45,127.4,31.6291]
[1719251499216,2.08131212,127.45,127.42,23.44]
[1719251499404,6.1246,127.48,127.42,23.44]
[1719251499599,8.20591212,127.48,127.43,0.34]
[1719251499798,8.20591212,127.48,127.4,0.17]
[1719251499799,8.20591212,127.48,127.4,23.44]
[1719251500002,8.20591212,127.48,127.44,23.44]
[1719251500215,2.08131212,127.48,127.47,23.44]
[1719251500422,2.08131212,127.48,127.47,20.34]
[1719251500728,2.08131212,127.48,127.45,0.17]
[1719251501222,2.08131212,127.48,127.45,23.44]
[1719251501403,2.08131212,127.48,127.44,0.34]
[1719251501915,2.08131212,127.48,127.43,20.0]
[1719251502234,2.08131212,127.48,127.43,43.44]
[1719251502399,2.08131212,127.48,127.44,23.61]
[1719251502605,2.08131212,127.48,127.46,23.44]
[1719251502907,2.08131212,127.48,127.45,23.44]
[1719251503110,15.0562,127.51,127.46,43.78]
[1719251503416,15.0562,127.51,127.46,20.17]
[1719251503736,15.0562,127.51,127.44,0.17]
[1719251503927,15.0562,127.51,127.44,23.78]
[1719251504107,6.6386,127.54,127.49,31.2836]
[1719251504426,6.6386,127.54,127.51,23.44]
[1719251504805,6.6386,127.54,127.5,0.34]
[1719251505142,6.6386,127.54,127.5,20.34]
[1719251505305,6.6386,127.54,127.5,20.17]
[1719251505506,6.6386,127.54,127.5,20.0]
[1719251505811,6.6386,127.54,127.49,0.17]
[1719251506016,7.8424,127.52,127.41,259.1]
[1719251506235,7.8413,127.53,127.46,16.3758]
[1719251506528,14.4797,127.54,127.39,7.8496]
[1719251506701,6.6386,127.54,127.4,27.4713]
[1719251506902,0.34,127.53,127.4,19.6226]
[1719251507115,0.34,127.53,127.41,7.8484]
[1719251507418,0.34,127.53,127.4,19.6226]
[1719251508003,0.34,127.53,127.41,20.0]
[1719251508427,0.34,127.53,127.39,7.8493]
[1719251508619,2.08131212,127.52,127.4,20.0]
[1719251508928,0.34,127.51,127.38,27.85]
[1719251509111,2.08292766,127.5,127.38,20.0]
[1719251509430,0.34,127.49,127.38,20.0]
[1719251509725,15.0283,127.46,127.37,27.4778]
[1719251509904,2.08292766,127.45,127.37,27.4778]
[1719251510322,2.08292766,127.45,127.37,19.6268]
[1719251510527,2.08292766,127.45,127.37,27.4779]
[1719251513131,6.1813,127.52,127.42,23.61]
[1719251513434,6.1813,127.52,127.43,20.17]
[1719251513602,2.40604489,127.51,127.44,0.17]
[1719251514219,2.40604489,127.51,127.43,0.17]
[1719251514624,2.40604489,127.51,127.42,20.0]
[1719251514831,2.40604489,127.51,127.41,390.4]
[1719251515125,2.40604489,127.51,127.42,19.6196]
[1719251515309,2.40604489,127.51,127.42,43.0596]
[1719251515509,2.40604489,127.51,127.41,390.4]
[1719251515727,2.40604489,127.51,127.41,410.0211]
[1719251515931,2.40604489,127.51,127.42,8.1876]
[1719251516134,2.40604489,127.51,127.43,27.8474]
[1719251516320,2.40604489,127.51,127.44,0.34]
[1719251516722,2.40604489,127.51,127.44,23.78]
[1719251516930,2.40604489,127.51,127.49,31.2834]
[1719251517110,2.40604489,127.51,127.5,43.78]
[1719251517312,2.40604489,127.51,127.5,20.0]
[1719251517737,2.40604489,127.51,127.5,43.78]
[1719251517912,16.1396,127.56,127.5,43.78]
[1719251518119,16.1396,127.56,127.51,0.17]
[1719251518427,16.1396,127.56,127.51,0.34]
[1719251518616,16.1396,127.56,127.49,43.44]
[1719251518819,16.1396,127.56,127.5,0.34]
[1719251519012,16.1396,127.56,127.49,20.0]
[1719251519335,16.1396,127.56,127.5,0.17]
[1719251519523,6.4049,127.57,127.5,31.2826]
[1719251519730,6.4049,127.57,127.51,20.34]
[1719251519922,16.3878,127.61,127.53,7.8407]
[1719251520235,16.3878,127.61,127.54,20.34]
[1719251520414,16.3878,127.61,127.54,20.0]
[1719251520941,16.3878,127.61,127.51,51.4524]
[1719251521117,16.3878,127.61,127.52,31.4518]
[1719251521342,0.17,127.6,127.51,20.17]
[1719251521518,0.34,127.6,127.51,20.0]
[1719251521927,0.34,127.6,127.47,20.0]
[1719251522133,6.6254,127.57,127.47,20.0]
[1719251522339,6.6254,127.57,127.43,272.61289082]
[1719251522340,0.34,127.56,127.44,20.0]
[1719251522643,7.8407,127.54,127.4,413.84]
[1719251522817,0.34,127.56,127.4,413.84]
[1719251522818,15.0496,127.52,127.4,413.84]
[1719251523017,0.34,127.51,127.4,413.84]
[1719251523413,6.2359,127.5,127.39,23.44]
[1719251523637,0.17,127.49,127.4,23.44]
[1719251523838,6.2359,127.5,127.4,23.44]
[1719251524018,6.2359,127.5,127.42,31.2878]
[1719251524220,6.2359,127.5,127.4,43.0629]
[1719251524724,6.2359,127.5,127.4,23.44]
[1719251524912,6.2359,127.5,127.37,284.49897241]
[1719251524913,6.2359,127.5,127.38,23.44]
[1719251525114,6.2359,127.5,127.37,284.49897241]
[1719251525115,2.08193034,127.49,127.4,31.2892]
[1719251525325,2.08193034,127.49,127.41,23.44]
[1719251525624,2.08193034,127.49,127.43,43.0578]
[1719251525826,7.41010561,127.6,127.43,23.44]
[1719251525827,6.1291,127.55,127.43,23.44]
[1719251526127,6.1291,127.55,127.47,19.612]
[1719251526439,2.40604489,127.54,127.48,20.17]
[1719251526644,2.40604489,127.54,127.48,20.0]
[1719251526826,2.40604489,127.54,127.46,8.0154]
[1719251527033,2.40604489,127.54,127.47,20.17]
[1719251527233,2.40604489,127.54,127.47,43.61]
[1719251527936,2.40604489,127.54,127.47,20.0]
[1719251528139,2.40604489,127.54,127.45,20.0]
[1719251528346,2.40604489,127.54,127.44,20.0]
[1719251528654,2.40604489,127.54,127.43,0.17]
[1719251528655,0.17,127.53,127.43,0.17]
[1719251528829,2.40442432,127.52,127.42,0.34]
[1719251529029,2.40442432,127.52,127.42,8.1879]
[1719251529347,2.40442432,127.52,127.45,31.2858]
[1719251529534,2.40442432,127.52,127.46,31.4555]
[1719251529852,2.40442432,127.52,127.47,20.0]
[1719251530345,2.40442432,127.52,127.46,0.34]
[1719251530843,2.40442432,127.52,127.46,0.17]
[1719251531041,2.40442432,127.52,127.39,390.4]
[1719251531229,2.40442432,127.52,127.42,23.44]
[1719251531433,2.40442432,127.52,127.43,20.0]
[1719251531619,2.40442432,127.52,127.41,7.8485]
[1719251531819,2.40442432,127.52,127.42,20.0]
[1719251532443,0.17,127.51,127.42,20.0]
[1719251532647,2.40442432,127.52,127.42,43.44]
[1719251532831,2.40442432,127.52,127.46,23.44]
[1719251533036,2.40442432,127.52,127.47,51.2845]
[1719251533235,2.40442432,127.52,127.46,19.6137]
[1719251533437,2.40442432,127.52,127.47,43.44]
[1719251533649,2.40442432,127.52,127.39,7.8495]
[1719251533846,2.40442432,127.52,127.4,20.0]
[1719251534034,2.40442432,127.52,127.4,27.8488]
[1719251534348,2.40442432,127.52,127.4,43.44]
[1719251534521,2.40442432,127.52,127.4,51.2887]
[1719251534720,2.40442432,127.52,127.42,23.44]
[1719251534926,2.40442432,127.52,127.43,7.8472]
[1719251535133,2.40442432,127.52,127.38,39.2508]
[1719251535335,2.40442432,127.52,127.41,31.2882]
[1719251535743,2.40442432,127.52,127.42,0.17]
[1719251536151,0.17,127.51,127.41,0.17]
[1719251536339,0.34,127.51,127.41,20.34]
[1719251536928,2.40442432,127.52,127.41,43.78]
[1719251537336,6.1291,127.55,127.41,43.78]
[1719251537536,2.40281991,127.51,127.45,31.286]
[1719251537757,2.40281991,127.51,127.46,20.0]
[1719251537957,2.40281991,127.51,127.47,7.8448]
[1719251538252,2.40281991,127.51,127.48,20.17]
[1719251538556,6.1291,127.55,127.51,7.842]
[1719251538764,6.1291,127.55,127.48,0.17]
[1719251538765,6.1291,127.55,127.52,20.0]
[1719251539426,6.1291,127.55,127.51,0.17]
[1719251539827,6.1291,127.55,127.51,8.1824]
[1719251540029,6.4201,127.6,127.52,43.44]
[1719251540333,6.4201,127.6,127.53,31.6209]
[1719251540541,8.50141212,127.6,127.54,43.44]
[1719251540751,8.50141212,127.6,127.55,0.17]
[1719251540964,2.08131212,127.6,127.55,23.78]
[1719251541137,2.08131212,127.6,127.56,20.0]
[1719251541464,16.1843,127.63,127.55,0.34]
[1719251541663,18.59034489,127.63,127.54,20.0]
[1719251541958,16.1843,127.63,127.55,0.17]
[1719251542165,16.1843,127.63,127.53,51.6211]
[1719251542166,2.40442123,127.62,127.53,43.78]
[1719251542669,2.40442123,127.62,127.53,51.6212]
[1719251542956,2.40442123,127.62,127.53,43.78]
[1719251543164,2.40442123,127.62,127.53,20.34]
[1719251543455,2.40442123,127.62,127.53,51.6208]
[1719251544163,2.40442123,127.62,127.53,43.78]
[1719251544660,0.17,127.61,127.49,23.44]
[1719251544844,0.34,127.61,127.48,19.6102]
[1719251545038,2.40281376,127.6,127.49,9.41370747]
[1719251545233,0.17,127.59,127.48,27.4541]
[1719251545456,8.54231376,127.58,127.46,259.1]
[1719251545759,16.649,127.56,127.43,390.4]
[1719251545989,16.649,127.56,127.39,259.1]
[1719251545990,6.4795,127.55,127.39,259.1]
[1719251546269,6.4795,127.55,127.4,9.41938076]
[1719251546431,6.1395,127.5,127.37,390.4]
[1719251546632,8.54072233,127.5,127.39,23.44]
[1719251546838,8.54072233,127.5,127.48,7.8437]
[1719251546839,2.40122233,127.5,127.48,7.8437]
[1719251547038,22.7885,127.54,127.5,7.8429]
[1719251547236,22.7885,127.54,127.42,178.1]
[1719251547237,22.7885,127.54,127.42,19.6194]
[1719251547453,22.7885,127.54,127.45,7.846]
[1719251547676,22.7885,127.54,127.46,8.0155]
[1719251547846,22.7885,127.54,127.46,43.2232]
[1719251548047,22.7885,127.54,127.46,19.7832]
[1719251548278,22.7885,127.54,127.47,20.0]
[1719251548567,6.1395,127.54,127.48,0.17]
[1719251548745,6.1395,127.54,127.5,23.44]
[1719251548952,6.1395,127.54,127.51,20.17]
[1719251549464,6.1395,127.54,127.51,20.0]
[1719251549665,6.1395,127.54,127.52,0.17]
[1719251549861,6.1395,127.54,127.51,0.34]
[1719251550461,6.2334,127.62,127.55,31.2799]
[1719251550665,6.2334,127.62,127.56,23.78]
[1719251550855,6.2334,127.62,127.57,20.0]
[1719251551408,6.2334,127.62,127.56,0.17]
[1719251551574,6.2334,127.62,127.55,20.34]
[1719251552061,6.2334,127.62,127.56,31.2788]
[1719251552273,6.2334,127.62,127.57,20.34]
[1719251552448,6.2334,127.62,127.55,20.17]
[1719251553272,6.2334,127.62,127.56,0.17]
[1719251553764,6.2334,127.62,127.56,8.0093]
[1719251553974,6.2334,127.62,127.57,20.17]
[1719251554863,6.2334,127.62,127.58,20.0]
[1719251555049,6.2334,127.62,127.56,20.0]
[1719251555251,6.2334,127.62,127.5,421.51]
[1719251555457,0.17,127.61,127.5,390.4]
[1719251555651,0.34,127.61,127.51,20.0]
[1719251555969,0.34,127.61,127.51,27.8424]
[1719251556170,0.34,127.61,127.51,51.2824]
[1719251556556,6.2334,127.62,127.53,23.44]
[1719251556758,6.2334,127.62,127.54,51.4505]
[1719251556970,6.2334,127.62,127.55,23.44]
[1719251557265,6.2334,127.62,127.56,20.34]
[1719251557470,6.2334,127.62,127.56,43.78]
[1719251557676,6.2334,127.62,127.57,43.0362]
[1719251557877,6.2334,127.62,127.58,20.17]
[1719251559873,6.2334,127.62,127.57,20.0]
[1719251560059,6.2334,127.62,127.56,0.34]
[1719251560256,6.2334,127.62,127.54,27.8401]
[1719251560257,6.2334,127.62,127.55,0.34]
[1719251560454,6.2334,127.62,127.55,8.18]
[1719251560769,6.2334,127.62,127.56,20.0]
[1719251561352,6.2334,127.62,127.55,0.34]
[1719251562057,6.2334,127.62,127.54,20.0]
[1719251562264,6.2334,127.62,127.53,20.34]
[1719251563066,6.2334,127.62,127.56,23.44]
[1719251563276,6.2334,127.62,127.57,0.17]
[1719251563448,6.2334,127.62,127.57,28.0088]
[1719251563651,6.2334,127.62,127.58,23.61]
[1719251563968,23.1302,127.73,127.6,7.8369]
[1719251564379,23.1302,127.73,127.61,20.0]
[1719251564759,7.8301,127.72,127.61,20.0]
[1719251564952,7.8304,127.71,127.61,20.0]
[1719251565158,6.0069,127.7,127.59,0.17]
[1719251565347,0.17,127.69,127.58,27.8377]
[1719251565666,0.17,127.69,127.58,20.0]
[1719251565969,0.17,127.69,127.59,0.17]
[1719251566269,0.34,127.69,127.59,20.34]
[1719251566447,0.34,127.69,127.59,20.0]
[1719251566855,0.17,127.69,127.59,20.0]
[1719251567050,0.17,127.69,127.58,20.34]
[1719251567770,6.0069,127.7,127.59,23.61]
[1719251567973,6.0069,127.7,127.62,7.8353]
[1719251568157,6.0069,127.7,127.63,20.17]
[1719251568356,6.0069,127.7,127.63,20.34]
[1719251570058,6.0069,127.7,127.63,20.17]
[1719251570268,6.0069,127.7,127.63,0.17]
[1719251570870,6.0069,127.7,127.63,8.0051]
[1719251571078,6.0069,127.7,127.65,23.44]
[1719251571258,6.0069,127.7,127.66,51.6127]
[1719251571658,6.0069,127.7,127.66,20.17]
[1719251571857,6.0069,127.7,127.67,20.0]
[1719251572059,6.0069,127.7,127.66,0.17]
[1719251572270,6.0069,127.7,127.66,43.61]
[1719251572580,6.0069,127.7,127.66,23.61]
[1719251572757,6.0069,127.7,127.67,20.0]
[1719251573859,6.0069,127.7,127.67,39.5812]
[1719251574588,6.0069,127.7,127.67,20.0]
[1719251575080,16.5608,127.73,127.67,43.44]
[1719251575380,16.5608,127.73,127.68,0.17]
[1719251575576,16.5608,127.73,127.67,20.0]
[1719251575887,16.5608,127.73,127.65,20.17]
[1719251576183,16.5608,127.73,127.65,51.4433]
[1719251576355,16.5608,127.73,127.66,0.17]
[1719251576561,16.5608,127.73,127.67,23.44]
[1719251576854,16.5608,127.73,127.66,0.17]
[1719251576855,16.071,127.77,127.7,31.2704]
[1719251577075,16.071,127.77,127.71,20.17]
[1719251577471,16.071,127.77,127.71,43.61]
[1719251577656,16.071,127.77,127.71,20.17]
[1719251578271,16.071,127.77,127.71,0.17]
[1719251578757,16.071,127.77,127.71,45.17]
[1719251578963,16.071,127.77,127.72,20.0]
[1719251579165,16.071,127.77,127.73,45.0]
[1719251580065,16.071,127.77,127.73,28.3334]
[1719251580279,16.071,127.77,127.66,19.5821]
[1719251580590,16.071,127.77,127.63,19.5869]
[1719251580770,8.1673,127.76,127.63,23.44]
[1719251581081,6.0062,127.75,127.6,50.5112]
[1719251581261,7.8297,127.72,127.58,696.49]
[1719251581468,6.5218,127.7,127.58,649.5]
[1719251581777,15.518,127.69,127.59,50.871]
[1719251582157,15.518,127.69,127.56,50.5183]
[1719251582487,15.518,127.69,127.58,19.5951]
[1719251582667,15.518,127.69,127.59,27.8375]
[1719251582862,15.518,127.69,127.56,123.44]
[1719251583068,15.518,127.69,127.58,30.95]
[1719251583275,6.5218,127.7,127.65,7.8337]
[1719251583481,6.5218,127.7,127.58,177.94]
[1719251583482,6.5218,127.7,127.63,7.8347]
[1719251583690,6.5218,127.7,127.64,7.8341]
[1719251583986,6.5218,127.7,127.65,0.34]
[1719251584162,6.5218,127.7,127.65,23.44]
[1719251584364,15.7183,127.73,127.67,23.44]
[1719251584558,15.7183,127.73,127.68,20.17]
[1719251584763,15.7183,127.73,127.66,20.34]
[1719251584979,15.7183,127.73,127.66,43.78]
[1719251585181,15.7183,127.73,127.66,20.0]
[1719251585379,15.7183,127.73,127.63,20.0]
[1719251585772,0.34,127.72,127.59,27.4307]
[1719251586084,0.17,127.72,127.61,19.5904]
[1719251586290,0.17,127.71,127.61,19.5904]
[1719251586769,0.34,127.72,127.61,19.5904]
[1719251587099,0.34,127.72,127.63,43.0267]
[1719251587100,0.17,127.72,127.63,43.0267]
[1719251587272,15.7183,127.73,127.64,8.0041]
[1719251587472,15.7183,127.73,127.6,19.5913]
[1719251587670,0.17,127.72,127.62,7.8353]
[1719251587871,15.7183,127.73,127.63,8.1751]
[1719251588184,15.7183,127.73,127.63,0.34]
[1719251588488,0.17,127.72,127.63,20.34]
[1719251588688,15.7183,127.73,127.64,7.8345]
[1719251588933,15.7183,127.73,127.65,20.34]
[1719251589185,6.2821,127.74,127.7,23.44]
[1719251589392,15.7865,127.78,127.66,0.17]
[1719251589393,22.0885,127.78,127.72,31.2696]
[1719251589576,22.0885,127.78,127.73,20.17]
[1719251589766,22.0885,127.78,127.74,7.8282]
[1719251589767,6.302,127.78,127.74,7.8282]
[1719251589967,6.302,127.78,127.75,20.0]
[1719251590391,6.302,127.78,127.71,0.17]
[1719251590567,6.302,127.78,127.72,19.5738]
[1719251590768,6.302,127.78,127.73,20.17]
[1719251591067,6.5291,127.83,127.76,31.2669]
[1719251591264,6.5291,127.83,127.78,7.8257]
[1719251591484,6.5291,127.83,127.79,20.0]
[1719251592202,6.5291,127.83,127.73,50.5216]
[1719251592203,6.5291,127.83,127.77,23.44]
[1719251592403,6.5291,127.83,127.78,20.0]
[1719251592704,6.5291,127.83,127.71,390.4]
[1719251592899,22.5466,127.79,127.64,259.1]
[1719251593199,7.8259,127.78,127.6,23.44]
[1719251593378,13.8526,127.77,127.62,31.2757]
[1719251593697,16.5206,127.79,127.63,7.8346]
[1719251593698,6.9293,127.76,127.63,7.8346]
[1719251593992,6.9293,127.76,127.62,19.5883]
[1719251593993,6.5893,127.76,127.67,7.8325]
[1719251594198,6.5893,127.76,127.66,19.5824]
[1719251594199,0.17,127.75,127.66,19.5824]
[1719251594394,0.34,127.75,127.66,27.4156]
[1719251594692,0.34,127.75,127.65,7.8337]
[1719251594899,0.17,127.74,127.6,5.79416354]
[1719251595199,0.34,127.75,127.6,23.44]
[1719251595497,0.34,127.75,127.63,23.44]
[1719251595694,0.34,127.75,127.65,23.44]
[1719251595881,0.34,127.75,127.65,31.2734]
[1719251595882,0.17,127.75,127.65,31.2734]
[1719251596086,0.17,127.75,127.65,27.4173]
[1719251596300,0.17,127.75,127.64,0.17]
[1719251596485,0.17,127.75,127.65,23.44]
[1719251596685,0.17,127.75,127.66,0.34]
[1719251596899,6.5893,127.76,127.64,19.5856]
[1719251597196,6.5893,127.76,127.62,46.99]
[1719251597197,6.5893,127.76,127.66,70.43]
[1719251597402,6.5893,127.76,127.69,23.44]
[1719251597593,6.5893,127.76,127.72,31.2691]
[1719251597788,6.5893,127.76,127.73,20.17]
[1719251597977,16.5206,127.79,127.73,27.8289]
[1719251598681,16.5206,127.79,127.73,20.0]
[1719251599081,16.5206,127.79,127.72,0.17]
[1719251599312,16.5206,127.79,127.71,20.0]
[1719251599478,16.5206,127.79,127.71,43.44]
[1719251599799,16.5206,127.79,127.72,0.34]
[1719251599986,16.5206,127.79,127.72,8.1696]
[1719251600186,16.5206,127.79,127.73,27.8288]
[1719251600404,6.4451,127.8,127.74,0.34]
[1719251600581,6.4451,127.8,127.73,20.0]
[1719251601308,6.4451,127.8,127.74,0.17]
[1719251601513,6.4451,127.8,127.74,0.34]
[1719251601813,6.4451,127.8,127.73,20.0]
[1719251602184,6.4451,127.8,127.72,20.17]
[1719251602394,6.4451,127.8,127.73,20.0]
[1719251602698,0.17,127.79,127.67,7.8323]
[1719251602903,22.7042,127.78,127.65,665.5847]
[1719251603083,22.7042,127.78,127.66,7.8331]
[1719251603281,0.34,127.77,127.65,409.9842]
[1719251603592,0.34,127.77,127.67,19.5809]
[1719251603800,22.7042,127.78,127.68,43.0196]
[1719251604005,22.7042,127.78,127.69,7.8312]
[1719251604300,22.7042,127.78,127.65,390.4]
[1719251604301,22.7042,127.78,127.72,7.8295]
[1719251604504,22.7042,127.78,127.7,19.747]
[1719251604505,22.7042,127.78,127.7,19.917]
[1719251604691,22.7042,127.78,127.7,27.7474]
[1719251605102,22.7042,127.78,127.72,19.5736]
[1719251605403,6.4619,127.78,127.73,20.0]
[1719251605798,6.4619,127.78,127.72,20.0]
[1719251606106,6.4619,127.78,127.72,27.8296]
[1719251606284,6.4619,127.78,127.72,20.0]
[1719251606490,6.4619,127.78,127.7,8.0005]
[1719251606711,6.4619,127.78,127.71,20.17]
[1719251606895,6.4619,127.78,127.72,7.8291]
[1719251607206,6.4619,127.78,127.71,20.17]
[1719251607207,6.4619,127.78,127.73,20.0]
[1719251607393,6.4619,127.78,127.71,20.0]
[1719251608011,6.4619,127.78,127.69,27.8314]
[1719251608191,6.4619,127.78,127.69,66.99]
[1719251608394,6.4619,127.78,127.74,7.8282]
[1719251608606,6.4619,127.78,127.73,7.8288]
[1719251608793,6.4619,127.78,127.74,20.17]
[1719251609900,6.1477,127.82,127.75,0.17]
[1719251610111,6.1477,127.82,127.76,7.8267]
[1719251610396,6.1477,127.82,127.77,20.0]
[1719251610602,6.1477,127.82,127.75,0.17]
[1719251610812,6.1477,127.82,127.76,7.8268]
[1719251611009,6.1477,127.82,127.77,20.0]
[1719251611833,6.1477,127.82,127.76,0.17]
[1719251611834,16.0166,127.88,127.8,7.8242]
[1719251612112,16.0166,127.88,127.79,50.9977]
[1719251612519,16.0166,127.88,127.78,0.17]
[1719251612691,16.0166,127.88,127.78,20.34]
[1719251613102,0.17,127.87,127.78,20.34]